[Event "Cape Verde Championship Final 2022"]
[Site "Praia"]
[Date "2022.12.08"]
[Round "1.1"]
[White "Vaz, Jose Carlos"]
[Black "Ortega Amarelle, Mariano"]
[Result "0-1"]
[ECO "B49"]
[WhiteElo "1787"]
[BlackElo "2471"]
[Annotator "TA"]
[PlyCount "104"]
[EventDate "2022.12.04"]
[EventType "tourn"]
[EventCountry "KAP"]
[SourceTitle "playchess.com"]
[Source "ChessBase"]
[SourceQuality "1"]
[TimeControl "40/5400+30:1800+30"]

{[%evp 14,104,22,0,4,8,64,41,41,-7,22,-16,0,-21,-30,-71,-79,-68,-39,-59,-53,-176,-94,-173,-170,-170,-175,-189,-170,-342,-310,-454,-447,-448,-438,-420,-418,-473,-455,-500,-498,-485,-501,-525,-522,-523,-519,-511,-495,-518,-529,-533,-522,-551,-570,-566,-543,-559,-546,-566,-564,-597,-525,-602,-506,-506,-501,-498,-491,-622,-583,-701,-693,-711,-710,-1135,-1137,-1135,-1136,-1053,-1031,-1119,-1081,-1529,-1516,-1382,-1407,-2414,-2008,-2008,-2008,-1419,-1311]} 1. e4 {[%emt 0:00:26]} c5 {[%emt 0:00:05]} 2. Nf3 {[%emt 0:00:39]} e6 {[%emt 0:00:12]} 3. Nc3 {[%emt 0:00:35]} Nc6 {[%emt 0:07:51]} 4. d4 {[%emt 0:03:52]} cxd4 {[%emt 0:00:29]} 5. Nxd4 {[%emt 0:00:25]} a6 {[%emt 0:06:17]} 6. Be2 {[%emt 0:06:01]} Qc7 {[%emt 0:02:25]} 7. Be3 {[%emt 0:02:40]} Nf6 {[%emt 0:00:34]} 8. Qd2 {[%emt 0:01:23]} Bb4 {[%emt 0:01:29] B49: Sicilian: Taimanov: 5 Nc3 Qc7 6 Be3 a6 7 Be2.} 9. f3 {[%emt 0:03:07]} Ne5 {[%emt 0:24:09]} (9... d5 $11) 10. O-O {[%emt 0:05:13][%cal Oc3b5] Ncb5! is the strong threat.} O-O {[%emt 0:02:49] White is slightly better.} 11. a3 {[%emt 0:01:45]} (11. Bg5 $14 {feels stronger.}) 11... Be7 {[%emt 0:05:16] [#]} 12. Bf4 $146 {[%emt 0:02:11]} ({Predecessor:} 12. b3 b5 13. f4 Neg4 14. e5 Nxe3 15. Qxe3 Ne8 16. b4 f5 17. Rf3 Qb6 18. Kh1 {0-1 (56) Sharku,E (1174)-Kobald,J (1833) Mamaia 2017}) 12... d6 {[%emt 0:00:40]} 13. Bg3 {[%emt 0:00:32]} b5 {[%emt 0:05:08]} 14. b3 {[%emt 0:01:26]} Bb7 {[%emt 0:02:14]} 15. Nd1 {[%emt 0:01:47]} Rac8 {[%emt 0:05:38]} 16. Kh1 {[%emt 0:01:00]} Rfd8 {[%emt 0:02:26] White must now prevent ...d5.} 17. Bd3 {[%emt 0:05:16] Black keeps a firm grip on the game.} (17. a4 $15) 17... Nh5 {[%emt 0:02:30]} ({Better is} 17... Nxd3 $19 18. cxd3 Nh5) 18. Bf2 {[%emt 0:00:38]} (18. Bxe5 $17 dxe5 19. Ne2) 18... d5 $19 {[%emt 0:00:35]} 19. exd5 {[%emt 0:01:48]} Nxd3 {[%emt 0:01:42]} 20. cxd3 {[%emt 0:01:13]} Rxd5 {[%emt 0:01:05]} 21. Ra2 $2 {[%emt 0:00:35]} (21. Ne2) 21... Qd8 {[%emt 0:02:02]} 22. Nc3 {[%emt 0:04:04]} (22. Rc2 {was worth a try.} Rxd4 23. Bxd4 Qxd4 24. Rxc8+ Bxc8 25. Qc3 Qxc3 26. Nxc3) 22... Rxd4 {[%emt 0:00:14]} 23. Bxd4 {[%emt 0:00:24]} Qxd4 {[%emt 0:00:09]} 24. Ne2 {[%emt 0:00:35]} Qh4 {[%emt 0:04:14] [#] And now ...Bd6 would win.} 25. Qe1 {[%emt 0:02:50]} Qg5 {[%emt 0:01:26] Black is clearly winning.} 26. Qd2 {[%emt 0:00:16]} Qxd2 {[%emt 0:01:05]} 27. Rxd2 {[%emt 0:00:12]} Bxa3 {[%emt 0:00:12]} 28. Ra2 {[%emt 0:00:16]} Bd6 {[%emt 0:00:26]} 29. Rc1 {[%emt 0:00:10]} Rxc1+ {[%emt 0:01:03]} 30. Nxc1 {[%emt 0:00:15]} Nf4 {[%emt 0:00:13]} 31. Kg1 {[%emt 0:00:38]} Bc5+ {[%emt 0:02:46]} 32. Kf1 {[%emt 0:00:28]} Nd5 {[%emt 0:00:27]} 33. Ke1 {[%emt 0:03:48]} Nb4 {[%emt 0:04:48]} 34. Re2 {[%emt 0:00:20]} Kf8 {[%emt 0:02:22]} 35. Kd2 {[%emt 0:00:33]} Bd4 {[%emt 0:00:19]} 36. Re1 {[%emt 0:01:34]} Nd5 {[%emt 0:05:14] Threatens to win with ...Bc3+.} 37. Ne2 {[%emt 0:01:33]} Bc5 {[%emt 0:00:23] [#] aiming for ...Bb4+.} 38. Rb1 {[%emt 0:01:06]} Ke7 {[%emt 0:00:44]} 39. d4 {[%emt 0:00:57]} Bb4+ {[%emt 0:00:41]} 40. Kd3 {[%emt 0:00:31]} a5 {[%emt 0:00:21]} 41. Rc1 {[%emt 0:31:15]} a4 {[%emt 0:31:01]} 42. Ra1 {[%emt 0:02:20]} a3 {[%emt 0:00:38]} (42... axb3 $2 {too greedy.} 43. Ra7 $19) 43. Rc1 {[%emt 0:00:23]} Bd6 {[%emt 0:00:26]} 44. Nc3 {[%emt 0:00:31]} Nxc3 {[%emt 0:00:36]} 45. Kxc3 {[%emt 0:00:07]} b4+ {[%emt 0:00:18]} 46. Kc2 {[%emt 0:00:50]} Bd5 {[%emt 0:00:44]} 47. h3 {[%emt 0:00:44]} Kf6 {[%emt 0:01:38]} 48. Re1 {[%emt 0:02:48]} e5 {[%emt 0:00:24]} 49. Rd1 {[%emt 0:03:08]} exd4 {[%emt 0:00:47] Hoping for ...Be5.} 50. Rxd4 {[%emt 0:00:07]} a2 {[%emt 0:00:22]} 51. Rxd5 {[%emt 0:00:56]} a1=Q {[%emt 0:00:17] ( -> ...Qc3+)} (51... a1=B $2 52. Rxd6+ Ke5 53. Ra6 $18) 52. Rxd6+ {[%emt 0:00:25]} Ke5 {[%emt 0:00:13] Weighted Error Value: White=0.38/Black=0.09 (flawless)} 0-1

[Event "Cape Verde Championship Final 2022"]
[Site "Praia"]
[Date "2022.12.08"]
[Round "1.2"]
[White "Monteiro, Antonio David Cabral"]
[Black "Barros, Luis"]
[Result "1-0"]
[ECO "D00"]
[WhiteElo "1778"]
[BlackElo "1666"]
[Annotator "NA RC COMBH"]
[PlyCount "87"]
[EventDate "2022.12.04"]
[EventType "tourn"]
[EventCountry "KAP"]
[SourceTitle "playchess.com"]
[Source "ChessBase"]
[SourceQuality "1"]
[TimeControl "40/5400+30:1800+30"]

1. d4 {[%emt 0:00:09]} Nf6 {[%emt 0:00:34]} 2. Bf4 {[%emt 0:00:20]} d5 {[%emt 0:03:36]} 3. e3 {[%emt 0:00:42]} c5 {[%emt 0:01:05]} 4. c3 {[%emt 0:01:16]} Qb6 {[%emt 0:01:25]} 5. Qb3 {[%emt 0:04:39]} Bf5 {[%emt 0:04:10]} 6. dxc5 {[%emt 0:04:02]} Qxb3 {[%emt 0:06:09]} 7. axb3 {[%emt 0:00:16]} e6 {[%emt 0:00:43]} 8. b4 {[%emt 0:02:18]} Be7 {[%emt 0:00:23]} 9. Nd2 {[%emt 0:02:12]} O-O {[%emt 0:02:32]} 10. Ngf3 {[%emt 0:01:50]} Nc6 {[%emt 0:00:52]} 11. Nd4 {[%emt 0:04:33]} Bg6 {[%emt 0:04:00]} 12. Nxc6 {[%emt 0:02:24]} bxc6 {[%emt 0:00:12]} 13. Ba6 {[%emt 0:02:47]} Nh5 {[%emt 0:07:54]} 14. Bc7 {[%emt 0:02:08]} Bd8 {[%emt 0:02:25]} 15. Bxd8 {[%emt 0:01:12]} Raxd8 {[%emt 0:02:31]} 16. Bb7 {[%emt 0:00:30]} Bd3 {[%emt 0:01:05]} 17. Bxc6 {[%emt 0:04:29]} a6 {[%emt 0:01:03]} 18. Nf3 {[%emt 0:01:43]} f6 {[%emt 0:01:18]} 19. Nd4 {[%emt 0:02:31]} Kf7 {[%emt 0:02:46]} 20. g4 {[%emt 0:03:09]} e5 {[%emt 0:00:46]} 21. Ne2 {[%emt 0:01:23]} Be4 {[%emt 0:03:48]} 22. Rg1 {[%emt 0:01:08]} Rc8 {[%emt 0:03:00]} 23. Ba4 {[%emt 0:01:26]} a5 {[%emt 0:03:48]} 24. gxh5 {[%emt 0:01:19]} axb4 {[%emt 0:00:17]} 25. cxb4 {[%emt 0:00:55]} Ra8 {[%emt 0:02:16]} 26. Kd2 {[%emt 0:01:07]} Ra7 {[%emt 0:01:16]} 27. Bb3 {[%emt 0:01:00]} Rb7 {[%emt 0:00:26]} 28. Kc3 {[%emt 0:03:00]} Bf3 {[%emt 0:00:37]} 29. Rg3 {[%emt 0:04:04]} Be4 {[%emt 0:08:03]} 30. f3 {[%emt 0:03:42]} Bxf3 {[%emt 0:06:44]} 31. Rxf3 {[%emt 0:00:17]} Rd8 {[%emt 0:00:29]} 32. e4 {[%emt 0:00:40]} Kf8 {[%emt 0:02:29]} 33. Bxd5 {[%emt 0:01:07]} Rc7 {[%emt 0:01:29]} 34. Kc4 {[%emt 0:01:24]} Ke7 {[%emt 0:00:41]} 35. b5 {[%emt 0:01:34]} Rb8 {[%emt 0:01:18]} 36. Rfa3 {[%emt 0:01:00]} f5 {[%emt 0:00:57]} 37. Ra7 {[%emt 0:01:14]} Rxa7 {[%emt 0:00:47]} 38. Rxa7+ {[%emt 0:00:04]} Kf6 {[%emt 0:00:14]} 39. Rf7+ {[%emt 0:00:25]} Kg5 {[%emt 0:00:31]} 40. Rxf5+ {[%emt 0:01:09]} Kh4 {[%emt 0:00:44]} 41. Rxe5 {[%emt 0:31:35]} g6 {[%emt 0:30:27]} 42. hxg6 {[%emt 0:01:22]} hxg6 {[%emt 0:00:11]} 43. b6 {[%emt 0:00:10]} g5 {[%emt 0:00:12]} 44. b7 {[%emt 0:00:59]} 1-0

[Event "Cape Verde Championship Final 2022"]
[Site "Praia"]
[Date "2022.12.08"]
[Round "1.3"]
[White "Teixeira, Gil"]
[Black "Moes Joaquim, Carlos"]
[Result "1-0"]
[ECO "B20"]
[WhiteElo "1763"]
[BlackElo "1448"]
[Annotator "NA RC COMBH"]
[PlyCount "68"]
[EventDate "2022.12.04"]
[EventType "tourn"]
[EventCountry "KAP"]
[SourceTitle "playchess.com"]
[Source "ChessBase"]
[SourceQuality "1"]
[TimeControl "40/5400+30:1800+30"]

1. e4 {[%emt 0:00:56]} c5 {[%emt 0:00:30]} 2. Nc3 {[%emt 0:00:19]} e6 {[%emt 0:01:10]} 3. Bc4 {[%emt 0:00:40]} a6 {[%emt 0:00:19]} 4. a4 {[%emt 0:00:49]} Qc7 {[%emt 0:01:34]} 5. Nge2 {[%emt 0:00:30]} Nc6 {[%emt 1:29:27]} 6. f4 {[%emt 0:00:32]} b6 {[%emt 0:00:00]} 7. O-O {[%emt 1:30:14]} Bb7 {[%emt 0:00:00]} 8. d3 {[%emt 0:00:00]} Nge7 {[%emt 0:00:00]} 9. f5 {[%emt 0:00:00]} Ne5 {[%emt 0:00:00]} 10. Bf4 {[%emt 0:00:00]} g5 {[%emt 0:00:00]} 11. Bg3 {[%emt 0:00:00]} h5 {[%emt 0:00:00]} 12. h3 {[%emt 0:00:00]} h4 {[%emt 0:03:30]} 13. Bh2 {[%emt 0:03:00]} exf5 {[%emt 0:00:00]} 14. exf5 {[%emt 0:00:00]} Qc6 {[%emt 0:00:00]} 15. Rf2 {[%emt 0:00:00]} Nxc4 {[%emt 0:00:00]} 16. dxc4 {[%emt 0:00:00]} Nxf5 {[%emt 0:00:00]} 17. Nd5 {[%emt 0:00:00]} Nd6 {[%emt 0:00:00]} 18. Nec3 {[%emt 0:00:00]} O-O-O {[%emt 0:03:00]} 19. b3 {[%emt 0:00:00]} f5 {[%emt 0:00:00]} 20. Bxd6 {[%emt 0:00:00]} Qxd6 {[%emt 0:00:00]} 21. Rxf5 {[%emt 0:04:00]} Bg7 {[%emt 0:00:00]} 22. Qf3 {[%emt 0:00:00]} Bd4+ {[%emt 0:00:00]} 23. Kh1 {[%emt 0:00:00]} Rdg8 {[%emt 0:00:00]} 24. Qg4 {[%emt 0:00:00]} Bxd5 {[%emt 0:00:00]} 25. Rxd5 {[%emt 0:00:00]} Qe6 {[%emt 0:00:00]} 26. Qf3 {[%emt 0:00:00]} g4 {[%emt 0:00:00]} 27. hxg4 {[%emt 0:00:00]} Rxg4 {[%emt 0:00:00]} 28. Rxd4 {[%emt 0:00:00]} cxd4 {[%emt 0:00:00]} 29. Qa8+ {[%emt 0:00:00]} Kc7 {[%emt 0:00:00]} 30. Nd5+ {[%emt 0:00:00]} Kd6 {[%emt 0:00:00]} 31. Qxh8 {[%emt 0:00:00]} Qe4 {[%emt 0:00:00]} 32. Qb8+ {[%emt 0:00:00]} Ke6 {[%emt 0:00:00]} 33. Qe8+ {[%emt 0:00:00]} Kd6 {[%emt 0:00:00]} 34. Qxe4 {[%emt 0:00:00]} Rxe4 {[%emt 0:00:00]} 1-0

[Event "Cape Verde Championship Final 2022"]
[Site "Praia"]
[Date "2022.12.08"]
[Round "1.4"]
[White "Monteiro, Antonio David Cabral"]
[Black "Rodriguez Guevara, Celia M."]
[Result "1/2-1/2"]
[ECO "B01"]
[WhiteElo "1778"]
[BlackElo "1803"]
[Annotator "NA RC COMBH"]
[PlyCount "51"]
[EventDate "2022.12.04"]
[EventType "tourn"]
[EventCountry "KAP"]
[SourceTitle "playchess.com"]
[Source "ChessBase"]
[SourceQuality "1"]
[TimeControl "40/5400+30:1800+30"]

1. e4 {[%emt 0:00:03]} d5 {[%emt 0:00:09]} 2. e5 {[%emt 0:00:38]} Bf5 {[%emt 0:03:52]} 3. d4 {[%emt 0:00:22]} e6 {[%emt 0:01:04]} 4. Bd3 {[%emt 0:04:01]} Bg6 {[%emt 0:06:22]} 5. Nf3 {[%emt 0:00:32]} c5 {[%emt 0:08:40]} 6. c3 {[%emt 0:00:57]} Nc6 {[%emt 0:11:35]} 7. O-O {[%emt 0:00:44]} cxd4 {[%emt 0:02:54]} 8. cxd4 {[%emt 0:00:04]} Qb6 {[%emt 0:08:01]} 9. Nc3 {[%emt 0:01:32]} Bh5 {[%emt 0:22:19]} 10. Bb5 {[%emt 0:07:49]} Bxf3 {[%emt 0:05:40]} 11. Bxc6+ {[%emt 0:00:20]} bxc6 {[%emt 0:03:53]} 12. gxf3 {[%emt 0:00:26]} Ne7 {[%emt 0:01:24]} 13. b3 {[%emt 0:00:51]} Nf5 {[%emt 0:01:02]} 14. Be3 {[%emt 0:00:14]} Nxe3 {[%emt 0:06:59]} 15. fxe3 {[%emt 0:00:03]} c5 {[%emt 0:02:40]} 16. Qd3 {[%emt 0:01:41]} cxd4 {[%emt 0:01:47]} 17. exd4 {[%emt 0:02:21]} a6 {[%emt 0:01:42]} 18. Rfc1 $15 {[%emt 0:01:04]} Be7 {[%emt 0:00:40]} 19. Na4 {[%emt 0:00:56]} Qa7 {[%emt 0:01:43]} 20. Rc6 {[%emt 0:02:17]} Ba3 {[%emt 0:02:43]} 21. Nc5 {[%emt 0:01:06]} Bxc5 {[%emt 0:01:41]} 22. Rxc5 {[%emt 0:00:03]} O-O {[%emt 0:00:19]} 23. Rac1 {[%emt 0:00:11]} a5 {[%emt 0:00:48]} 24. Rc7 {[%emt 0:00:21]} Qb6 {[%emt 0:00:08]} 25. R1c6 {[%emt 0:00:23]} Qb4 {[%emt 0:00:30]} 26. Qc3 {[%emt 0:00:50]} 1/2-1/2

[Event "Cape Verde Championship Final 2022"]
[Site "Praia"]
[Date "2022.12.08"]
[Round "2.1"]
[White "Ortega Amarelle, Mariano"]
[Black "Rodriguez Guevara, Celia M."]
[Result "1-0"]
[ECO "B76"]
[WhiteElo "2471"]
[BlackElo "1803"]
[Annotator "TA"]
[PlyCount "29"]
[EventDate "2022.12.04"]
[EventType "tourn"]
[EventCountry "KAP"]
[SourceTitle "playchess.com"]
[Source "ChessBase"]
[SourceQuality "1"]
[TimeControl "40/5400+30:1800+30"]

{[%evp 18,28,73,15,128,101,106,92,529,519,29997,29998,29999]} 1. e4 {[%emt 0:01:25]} c5 {[%emt 0:03:03]} 2. Nf3 {[%emt 0:00:34]} d6 {[%emt 0:00:15]} 3. d4 {[%emt 0:00:08]} cxd4 {[%emt 0:00:16]} 4. Nxd4 {[%emt 0:00:08]} Nf6 {[%emt 1:28:56]} 5. Nc3 {[%emt 0:00:09]} g6 {[%emt 0:00:00]} 6. Be3 {[%emt 0:00:17]} Bg7 {[%emt 0:00:00]} 7. f3 {[%emt 0:00:21]} O-O {[%emt 0:00:00]} 8. Qd2 {[%emt 0:04:21]} Bd7 {[%emt 0:00:00]} 9. O-O-O {[%emt 0:00:22]} Nc6 {[%emt 0:00:00]} 10. h4 {[%emt 0:03:54] [#] White is more active.} (10. Kb1 $16) 10... Nb4 $146 {[%emt 0:00:00] B76: Sicilian Dragon: Yugoslav Attack, 9 g4 and 9 0-0-0.} (10... h5 $1 $11 {keeps the balance.}) ({Predecessor:} 10... h5 11. Bh6 Rc8 12. Nxc6 Rxc6 13. g4 Qa5 14. Bxg7 Kxg7 15. g5 Ng8 16. Qd4+ Kh7 17. Bc4 a6 18. Bb3 e6 19. Rh2 {1-0 (50) Teclaf,P (2543)-Zhu,J (2455) chess24.com INT 2021}) 11. h5 {[%emt 0:07:05]} Nxh5 {[%emt 0:00:00]} (11... gxh5 $2 12. Bh6 Kh8 13. Bxg7+ Kxg7 14. a3 $18) 12. Bh6 {[%emt 0:05:16][%cal Oh1h5] Strongly threatening Rxh5!} a5 $2 {[%emt 0:00:00][%mdl 8192]} (12... Be5 $16 {is a better chance.}) 13. Rxh5 $18 {[%emt 0:05:18][%cal Oh6g7][%mdl 64] [#] Hoping for Bxg7!} gxh5 {[%emt 0:00:00]} (13... Bh8 $18 14. Bxf8 gxh5) 14. Qg5 $1 {[%emt 0:00:13][%csl Gh6,LRg7,LRh5][%cal Rg5g7]} e5 {[%emt 0:00:00]} 15. Qxg7# {[%emt 0:00:11] White took control after the opening.   Weighted Error Value: White=0.23 (precise) /Black=2.33} 1-0

[Event "Cape Verde Championship Final 2022"]
[Site "Praia"]
[Date "2022.12.08"]
[Round "2.2"]
[White "Moes Joaquim, Carlos"]
[Black "Monteiro, Antonio David Cabral"]
[Result "1/2-1/2"]
[ECO "D52"]
[WhiteElo "1448"]
[BlackElo "1778"]
[Annotator "NA RC COMBH"]
[PlyCount "42"]
[EventDate "2022.12.04"]
[EventType "tourn"]
[EventCountry "KAP"]
[SourceTitle "playchess.com"]
[Source "ChessBase"]
[SourceQuality "1"]
[TimeControl "40/5400+30:1800+30"]

1. d4 {[%emt 0:00:37]} d5 {[%emt 0:00:22]} 2. c4 {[%emt 0:00:08]} c6 {[%emt 0:00:08]} 3. Nc3 {[%emt 0:00:15]} Nf6 {[%emt 0:00:13]} 4. Nf3 {[%emt 0:01:08]} e6 {[%emt 0:00:21]} 5. Bg5 {[%emt 0:03:30]} Nbd7 {[%emt 0:01:39]} 6. e3 {[%emt 0:04:26]} Qa5 {[%emt 0:04:46]} 7. Nd2 {[%emt 0:04:47]} Bb4 {[%emt 0:01:34]} 8. Qc2 {[%emt 0:00:27]} O-O {[%emt 0:00:55]} 9. Be2 {[%emt 0:01:14]} Re8 {[%emt 0:05:14]} 10. O-O {[%emt 1:18:58]} Bd6 {[%emt 1:20:18]} 11. Bh4 {[%emt 0:00:00]} Qc7 {[%emt 0:00:00]} 12. Bg3 {[%emt 0:00:00]} a6 {[%emt 0:00:00]} 13. Rac1 {[%emt 0:00:00]} Rb8 {[%emt 0:00:00]} 14. b4 {[%emt 0:00:00]} b5 {[%emt 0:00:00]} 15. cxb5 {[%emt 0:00:00]} cxb5 {[%emt 0:00:00]} 16. Qb2 {[%emt 0:00:00]} Bxg3 {[%emt 0:00:00]} 17. hxg3 {[%emt 0:00:00]} Qa7 {[%emt 0:00:00]} 18. Nb3 {[%emt 0:00:00]} Nb6 {[%emt 0:00:00]} 19. a3 {[%emt 0:00:00]} Nc4 {[%emt 0:00:00]} 20. Qa2 {[%emt 0:00:00]} Bd7 {[%emt 0:00:00]} 21. Nc5 {[%emt 0:00:00]} Qb6 {[%emt 0:00:00]} 1/2-1/2

[Event "Cape Verde Championship Final 2022"]
[Site "Praia"]
[Date "2022.12.08"]
[Round "2.3"]
[White "Barros, Luis"]
[Black "Teixeira, Gil"]
[Result "0-1"]
[ECO "C01"]
[WhiteElo "1666"]
[BlackElo "1763"]
[Annotator "NA RC COMBH"]
[PlyCount "96"]
[EventDate "2022.12.04"]
[EventType "tourn"]
[EventCountry "KAP"]
[SourceTitle "playchess.com"]
[Source "ChessBase"]
[SourceQuality "1"]
[TimeControl "40/5400+30:1800+30"]

1. e4 {[%emt 0:03:15]} e6 {[%emt 0:00:10]} 2. d4 {[%emt 0:00:38]} Ne7 {[%emt 0:00:11]} 3. Nf3 {[%emt 0:00:59]} Ng6 {[%emt 0:00:10]} 4. Bd3 {[%emt 0:00:44]} Be7 {[%emt 0:00:09]} 5. c4 {[%emt 0:01:33]} d6 {[%emt 0:00:15]} 6. Nc3 {[%emt 0:00:35]} Nd7 {[%emt 0:00:15]} 7. e5 {[%emt 0:01:04]} dxe5 {[%emt 0:00:47]} 8. Bxg6 {[%emt 0:01:32]} fxg6 {[%emt 0:00:49]} 9. dxe5 {[%emt 0:01:52]} O-O {[%emt 0:00:25]} 10. Qb3 {[%emt 0:01:27]} Nc5 {[%emt 0:00:20]} 11. Qc2 {[%emt 0:00:59]} Nd3+ {[%emt 0:00:11]} 12. Ke2 {[%emt 0:00:31]} Nxc1+ {[%emt 0:04:19]} 13. Raxc1 {[%emt 0:00:32]} a6 {[%emt 0:00:22]} 14. Rhd1 {[%emt 0:01:01]} Qe8 {[%emt 0:00:11]} 15. Ne4 {[%emt 0:04:02]} b6 {[%emt 0:02:41]} 16. Rd2 {[%emt 0:02:34]} Bb7 {[%emt 0:00:18]} 17. Rcd1 {[%emt 0:01:50]} Rd8 {[%emt 0:00:45]} 18. Kf1 {[%emt 0:06:48]} Rxd2 {[%emt 0:02:10]} 19. Rxd2 {[%emt 0:00:19]} Qc6 {[%emt 0:00:13]} 20. Re2 {[%emt 0:03:09]} Rf4 {[%emt 0:03:21]} 21. Nd4 {[%emt 0:00:35]} Qd7 {[%emt 0:01:07]} 22. g3 {[%emt 0:00:38]} Rf8 {[%emt 0:10:23]} 23. Rd2 {[%emt 0:01:32]} Bc5 {[%emt 0:03:48]} 24. Nb3 {[%emt 0:01:38]} Qc6 {[%emt 0:00:53]} 25. Nbxc5 {[%emt 0:00:44]} bxc5 {[%emt 0:00:26]} 26. Re2 {[%emt 0:01:32]} Rd8 {[%emt 0:01:05]} 27. f3 {[%emt 0:00:48]} Rd4 {[%emt 0:00:50]} 28. Rd2 {[%emt 0:01:38]} Qd7 {[%emt 0:02:01]} 29. Ke2 {[%emt 0:04:04]} Bxe4 {[%emt 0:00:55]} 30. fxe4 {[%emt 0:00:36]} g5 {[%emt 0:03:59]} 31. Rxd4 {[%emt 0:00:56]} Qxd4 {[%emt 0:00:29]} 32. Kf3 {[%emt 0:05:57]} h5 {[%emt 0:02:04]} 33. h3 {[%emt 0:01:31]} Qxe5 {[%emt 0:00:45]} 34. Qe2 {[%emt 0:08:29]} h4 {[%emt 0:01:23]} 35. gxh4 {[%emt 0:02:55]} gxh4 {[%emt 0:00:13]} 36. Qf2 {[%emt 0:02:13]} Qf6+ {[%emt 0:03:35]} 37. Ke3 {[%emt 0:03:41]} Qxf2+ {[%emt 0:02:12]} 38. Kxf2 {[%emt 0:00:17]} g5 {[%emt 0:00:07]} 39. Kf3 {[%emt 0:00:42]} Kf7 {[%emt 0:00:10]} 40. Kg4 {[%emt 0:00:27]} Kf6 {[%emt 0:00:49]} 41. e5+ {[%emt 0:32:31]} Kxe5 {[%emt 0:34:36]} 42. Kxg5 {[%emt 0:00:38]} Ke4 {[%emt 0:00:32]} 43. a3 {[%emt 0:02:28]} a5 {[%emt 0:00:19]} 44. b3 {[%emt 0:00:23]} e5 {[%emt 0:00:12]} 45. Kg4 {[%emt 0:03:18]} Ke3 {[%emt 0:01:06]} 46. Kxh4 {[%emt 0:01:21]} Kf4 {[%emt 0:00:14]} 47. Kh5 {[%emt 0:02:23]} e4 {[%emt 0:00:07]} 48. h4 {[%emt 0:01:27]} e3 {[%emt 0:00:14]} 0-1

[Event "Cape Verde Championship Final 2022"]
[Site "Praia"]
[Date "2022.12.08"]
[Round "2.4"]
[White "Vaz, Jose Carlos"]
[Black "Monteiro, Antonio David Cabral"]
[Result "1-0"]
[ECO "C11"]
[WhiteElo "1787"]
[BlackElo "1778"]
[Annotator "NA RC COMBH"]
[PlyCount "75"]
[EventDate "2022.12.04"]
[EventType "tourn"]
[EventCountry "KAP"]
[SourceTitle "playchess.com"]
[Source "ChessBase"]
[SourceQuality "1"]
[TimeControl "40/5400+30:1800+30"]

1. e4 {[%emt 0:12:51]} e6 {[%emt 0:00:21]} 2. d4 {[%emt 0:00:31]} d5 {[%emt 0:00:16]} 3. Nc3 {[%emt 0:00:25]} Nf6 {[%emt 0:00:23]} 4. e5 {[%emt 0:00:10]} Nfd7 {[%emt 0:00:15]} 5. f4 {[%emt 0:00:26]} c5 {[%emt 0:00:30]} 6. Nf3 {[%emt 0:00:08]} Nc6 {[%emt 0:01:12]} 7. Bb5 {[%emt 0:00:43]} a6 {[%emt 0:01:54]} 8. Bxc6 {[%emt 0:01:00]} bxc6 {[%emt 0:00:21]} 9. O-O {[%emt 0:00:15]} cxd4 {[%emt 0:01:23]} 10. Nxd4 {[%emt 0:00:17]} c5 {[%emt 0:02:56]} 11. Nf3 {[%emt 0:00:14]} a5 {[%emt 0:02:37]} 12. Kh1 {[%emt 0:00:25]} Be7 {[%emt 0:01:30]} 13. f5 {[%emt 0:02:08]} O-O {[%emt 0:03:36]} 14. Qe1 {[%emt 0:07:29]} d4 {[%emt 0:06:14]} 15. fxe6 {[%emt 0:00:44]} dxc3 {[%emt 0:05:57]} 16. exd7 {[%emt 0:00:22]} cxb2 {[%emt 0:00:40]} 17. Bxb2 {[%emt 0:01:10]} Qxd7 {[%emt 0:03:40]} 18. Qc3 {[%emt 0:00:57]} Qg4 {[%emt 0:03:52]} 19. a3 {[%emt 0:00:58]} Be6 {[%emt 0:02:20]} 20. Rad1 {[%emt 0:00:37]} a4 {[%emt 0:03:02]} 21. h3 {[%emt 0:01:49]} Qe4 {[%emt 0:03:46]} 22. Bc1 {[%emt 0:01:14]} h6 {[%emt 0:01:19]} 23. Be3 {[%emt 0:02:24]} g5 {[%emt 0:02:48]} 24. Nd2 {[%emt 0:01:23]} Qc6 {[%emt 0:01:59]} 25. Kh2 {[%emt 0:00:23]} Rad8 {[%emt 0:02:01]} 26. Rf2 {[%emt 0:05:38]} Rd5 {[%emt 0:03:31]} 27. Kg1 {[%emt 0:00:37]} Rfd8 {[%emt 0:00:51]} 28. Rdf1 {[%emt 0:00:21]} Qc7 {[%emt 0:02:52]} 29. Nc4 {[%emt 0:02:53]} Rd1 {[%emt 0:01:48]} 30. h4 {[%emt 0:09:22]} Qc6 {[%emt 0:07:37]} 31. Nd6 {[%emt 0:03:48]} Rxf1+ {[%emt 0:34:29]} 32. Rxf1 {[%emt 0:44:48]} Bxd6 {[%emt 0:00:00]} 33. exd6 {[%emt 0:00:00]} Rxd6 {[%emt 0:00:00]} 34. hxg5 {[%emt 0:00:00]} hxg5 {[%emt 0:00:00]} 35. Bxg5 {[%emt 0:00:00]} Bd5 {[%emt 0:00:00]} 36. Bf6 {[%emt 0:00:00]} Be4 {[%emt 0:00:00]} 37. Qg3+ {[%emt 0:00:00]} Bg6 {[%emt 0:00:00]} 38. Qh4 {[%emt 0:00:00]} 1-0